fUSD/lending_fUSD_20260423
["ID","MTS","AMOUNT","RATE_DAILY","PERIOD"]
[421013225,1776925846085,-760.80087042,6.86e-05,2]
[421013226,1776925846095,-1010.91734977,6.86e-05,2]
[421013227,1776925846104,-1018.08998869,6.86e-05,2]
[421013228,1776925846114,-1059.38847492,6.86e-05,2]
[421013229,1776925846125,-2819.881,6.999e-05,2]
[421013230,1776925846136,-9199.56521641,7e-05,2]
[421013231,1776925846156,-888.0,7e-05,2]
[421013232,1776925846167,-923.0,7e-05,2]
[421013234,1776925846184,-17870.88504344,7e-05,2]
[421013237,1776925846205,-17836.35132159,7e-05,2]
[421013241,1776925846530,-1716.57057886,7e-05,2]
[421013242,1776925846558,-616.0,7e-05,2]
[421013245,1776926703041,150.0,6.288e-05,2]
[421013246,1776926703095,150.0,6.427e-05,2]
[421013247,1776926703164,150.0,6.567e-05,2]
[421013248,1776926730852,150.0,6.288e-05,2]
[421013249,1776926730921,150.0,6.404e-05,2]
[421013250,1776926730960,150.0,6.521e-05,2]
[421013251,1776926731019,150.0,6.637e-05,2]
[421013252,1776926731391,150.0,6.288e-05,2]
[421013253,1776926731439,150.0,6.521e-05,2]
[421013254,1776926735198,150.0,6.288e-05,2]
[421013255,1776926737447,150.0,6.288e-05,2]
[421013256,1776926737514,150.0,6.346e-05,2]
[421013257,1776926737553,150.0,6.404e-05,2]
[421013258,1776926737605,150.0,6.462e-05,2]
[421013259,1776926737690,150.0,6.521e-05,2]
[421013260,1776926737745,150.0,6.579e-05,2]
[421013261,1776926737825,150.0,6.637e-05,2]
[421013262,1776926738359,150.0,6.288e-05,2]
[421013263,1776926738425,150.0,6.521e-05,2]
[421013264,1776926740280,150.0,6.288e-05,2]
[421013265,1776926743415,150.21975716,6.288e-05,2]
[421013266,1776926743510,150.0,6.288e-05,2]
[421013267,1776926743542,150.0,6.375e-05,2]
[421013268,1776926743600,150.0,6.462e-05,2]
[421013269,1776926743672,150.0,6.55e-05,2]
[421013270,1776926743744,150.0,6.637e-05,2]
[421013271,1776926750515,150.0,6.358e-05,2]
[421013272,1776926750555,150.0,6.427e-05,2]
[421013273,1776926750588,150.0,6.288e-05,2]
[421013274,1776926750619,150.0,6.497e-05,2]
[421013275,1776926750680,150.0,6.567e-05,2]
[421013276,1776926750749,150.0,6.637e-05,2]
[421013277,1776926751203,150.0,6.288e-05,2]
[421013278,1776926751256,150.0,6.298e-05,2]
[421013279,1776926751338,150.0,6.309e-05,2]
[421013280,1776926751397,150.0,6.32e-05,2]
[421013281,1776926751464,150.0,6.331e-05,2]
[421013282,1776926751542,150.0,6.341e-05,2]
[421013283,1776926751620,150.0,6.352e-05,2]
[421013284,1776926751678,150.0,6.363e-05,2]
[421013285,1776926751751,150.0,6.374e-05,2]
[421013286,1776926751824,150.0,6.384e-05,2]
[421013287,1776926751899,150.0,6.395e-05,2]
[421013288,1776926751964,150.0,6.406e-05,2]
[421013289,1776926752056,150.0,6.417e-05,2]
[421013290,1776926752126,150.0,6.427e-05,2]
[421013291,1776926752220,150.0,6.438e-05,2]
[421013292,1776926752301,150.0,6.449e-05,2]
[421013293,1776926752338,150.0,6.46e-05,2]
[421013294,1776926752392,150.0,6.47e-05,2]
[421013295,1776926752465,150.0,6.481e-05,2]
[421013296,1776926752544,150.0,6.492e-05,2]
[421013297,1776926752607,150.0,6.503e-05,2]
[421013298,1776926752679,150.0,6.513e-05,2]
[421013299,1776926752750,150.0,6.524e-05,2]
[421013300,1776926752818,150.0,6.535e-05,2]
[421013301,1776926752889,150.0,6.546e-05,2]
[421013302,1776926752963,150.0,6.556e-05,2]
[421013303,1776926753034,150.0,6.567e-05,2]
[421013304,1776926753102,150.0,6.578e-05,2]
[421013305,1776926753178,150.0,6.589e-05,2]
[421013306,1776926753260,150.0,6.599e-05,2]
[421013307,1776926753339,150.0,6.61e-05,2]
[421013308,1776926753406,150.0,6.621e-05,2]
[421013309,1776926753472,150.0,6.632e-05,2]
[421013310,1776926753536,150.0,6.642e-05,2]
[421013311,1776926753607,150.0,6.653e-05,2]
[421013312,1776926753666,150.0,6.664e-05,2]
[421013313,1776926753744,150.0,6.675e-05,2]
[421013314,1776926753891,99.79024284,6.685e-05,2]
[421013315,1776926753926,50.20975716,6.685e-05,2]
[421013316,1776926755898,150.0,6.288e-05,2]
[421013317,1776926755935,150.0,6.521e-05,2]
[421013319,1776926802363,9649.80024284,6.65e-05,2]
[421013320,1776926802387,350.20975716,6.65e-05,2]
[421013321,1776926807577,242.78,6.546e-05,2]
[421013326,1776927032853,-252.80804943,6.689e-05,2]
[421013327,1776927032922,-47.19195057,6.689e-05,2]
[421013328,1776927032932,-415.26965181,6.689e-05,2]
[421013329,1776927032943,-582.38824952,6.689e-05,2]
[421013331,1776927035052,-202.34209867,6.689e-05,2]
[421013332,1776927035062,-803.02187453,6.69e-05,2]
[421013333,1776927035073,-347.8503141,6.69e-05,2]
[421013334,1776927035098,-284.15203215,6.69e-05,2]
[421013335,1776927035110,-418.75,6.69e-05,2]
[421013336,1776927035129,-1640.67172989,6.69e-05,2]
[421013337,1776927035141,-1794.47750331,6.69e-05,2]
[421013340,1776927038296,-2008.31450221,6.69e-05,2]
[421013341,1776927038400,-1979.42774988,6.69e-05,2]
[421013342,1776927038413,-866.12932493,6.69e-05,2]
[421013343,1776927038424,-1193.48095674,6.69e-05,2]
[421013344,1776927038475,-1722.94122752,6.69e-05,2]
[421013345,1776927038487,-1715.08907949,6.69e-05,2]
[421013346,1776927038499,-9522.85600549,6.69e-05,2]
[421013347,1776927038511,-359.96230042,6.69e-05,2]
[421013348,1776927038618,-2624.80203405,6.69e-05,2]
[421013349,1776927038630,-315.70090945,6.69e-05,2]
[421013350,1776927038641,-76165.53357054,6.69e-05,2]
[421013351,1776927038653,-1855.1471853,6.69e-05,2]
[421013352,1776927038663,-150.0,6.695e-05,2]
[421013353,1776927038672,-150.0,6.696e-05,2]
[421013354,1776927038682,-150.0,6.707e-05,2]
[421013355,1776927038691,-150.0,6.707e-05,2]
[421013356,1776927038701,-150.0,6.707e-05,2]
[421013357,1776927038710,-150.0,6.718e-05,2]
[421013358,1776927038720,-150.0,6.724e-05,2]
[421013359,1776927038730,-150.0,6.728e-05,2]
[421013360,1776927038739,-150.0,6.739e-05,2]
[421013361,1776927038749,-150.0,6.75e-05,2]
[421013362,1776927038758,-150.0,6.753e-05,2]
[421013363,1776927038768,-150.0,6.753e-05,2]
[421013364,1776927038778,-150.0,6.753e-05,2]
[421013365,1776927038788,-150.0,6.753e-05,2]
[421013366,1776927038798,-150.0,6.753e-05,2]
[421013367,1776927038807,-300.0,6.757e-05,2]
[421013368,1776927038817,-500.0,6.757e-05,2]
[421013369,1776927038827,-152.0,6.758e-05,7]
[421013371,1776927038836,-152.0,6.758e-05,7]
[421013373,1776927038846,-152.0,6.758e-05,7]
[421013375,1776927038856,-152.0,6.758e-05,7]
[421013377,1776927038866,-152.0,6.758e-05,7]
[421013379,1776927038876,-152.0,6.758e-05,7]
[421013381,1776927038886,-150.0,6.761e-05,2]
[421013383,1776927038895,-150.0,6.771e-05,2]
[421013385,1776927038905,-150.0,6.777e-05,2]
[421013388,1776927038920,-150.0,6.782e-05,2]
[421013390,1776927038930,-578.20924308,6.79e-05,2]
[421013392,1776927038941,-500.0,6.79e-05,2]
[421013394,1776927038951,-150.0,6.793e-05,2]
[421013396,1776927038961,-259.88460929,6.793e-05,2]
[421013398,1776927038970,-3487.36630642,6.796e-05,2]
[421013400,1776927038980,-151.0,6.796e-05,2]
[421013402,1776927038990,-174.61919141,6.796e-05,2]
[421013404,1776927039001,-151.0,6.796e-05,2]
[421013406,1776927039012,-465.47310865,6.798e-05,2]
[421013408,1776927039021,-500.0,6.798e-05,2]
[421013410,1776927039032,-500.0,6.798e-05,2]
[421013413,1776927039044,-500.0,6.798e-05,2]
[421013415,1776927039054,-500.0,6.798e-05,2]
[421013417,1776927039064,-500.0,6.798e-05,2]
[421013419,1776927039074,-500.0,6.798e-05,2]
[421013421,1776927039085,-500.0,6.798e-05,2]
[421013423,1776927039095,-500.0,6.798e-05,2]
[421013425,1776927039104,-500.0,6.798e-05,2]
[421013427,1776927039114,-500.0,6.798e-05,2]
[421013429,1776927039123,-500.0,6.798e-05,2]
[421013431,1776927039132,-500.0,6.798e-05,2]
[421013433,1776927039144,-500.0,6.798e-05,2]
[421013435,1776927039154,-500.0,6.798e-05,2]
[421013437,1776927039163,-500.0,6.798e-05,2]
[421013439,1776927039173,-500.0,6.798e-05,2]
[421013441,1776927039183,-500.0,6.798e-05,2]
[421013443,1776927039192,-500.0,6.798e-05,2]
[421013445,1776927039202,-500.0,6.798e-05,2]
[421013447,1776927039212,-500.0,6.798e-05,2]
[421013449,1776927039221,-500.0,6.798e-05,2]
[421013451,1776927039230,-500.0,6.798e-05,2]
[421013453,1776927039239,-500.0,6.798e-05,2]
[421013455,1776927039249,-500.0,6.798e-05,2]
[421013457,1776927039262,-500.0,6.798e-05,2]
[421013459,1776927039272,-500.0,6.798e-05,2]
[421013461,1776927039282,-500.0,6.798e-05,2]
[421013463,1776927039292,-500.0,6.798e-05,2]
[421013465,1776927039303,-500.0,6.798e-05,2]
[421013467,1776927039317,-500.0,6.798e-05,2]
[421013469,1776927039328,-500.0,6.798e-05,2]
[421013472,1776927039339,-500.0,6.798e-05,2]
[421013474,1776927039350,-500.0,6.798e-05,2]
[421013476,1776927039361,-500.0,6.798e-05,2]
[421013478,1776927039371,-500.0,6.798e-05,2]
[421013480,1776927039381,-500.0,6.798e-05,2]
[421013482,1776927039391,-627.93996193,6.798e-05,2]
[421013484,1776927039402,-500.0,6.798e-05,2]
[421013486,1776927039411,-500.0,6.798e-05,2]
[421013488,1776927039421,-500.0,6.798e-05,2]
[421013490,1776927039431,-500.0,6.798e-05,2]
[421013492,1776927039440,-150.0,6.799e-05,2]
[421013493,1776927039454,-200.08017349,6.8e-05,2]
[421013496,1776927039465,-152.0,6.801e-05,7]
[421013498,1776927039474,-152.0,6.801e-05,7]
[421013500,1776927039484,-152.0,6.801e-05,7]
[421013502,1776927039494,-152.0,6.801e-05,7]
[421013504,1776927039504,-152.0,6.801e-05,7]
[421013506,1776927039516,-150.0,6.804e-05,2]
[421013508,1776927039526,-150.0,6.812e-05,2]
[421013510,1776927039536,-150.0,6.812e-05,2]
[421013512,1776927039546,-150.0,6.814e-05,2]
[421013514,1776927039556,-500.0,6.822e-05,2]
[421013515,1776927039566,-150.0,6.825e-05,2]
[421013516,1776927039576,-150.0,6.836e-05,2]
[421013517,1776927039585,-150.0,6.847e-05,2]
[421013518,1776927039595,-150.0,6.847e-05,2]
[421013519,1776927039605,-150.0,6.847e-05,2]
[421013520,1776927039615,-151.0,6.851e-05,2]
[421013521,1776927039625,-150.0,6.857e-05,2]
[421013522,1776927039635,-150.0,6.868e-05,2]
[421013523,1776927039644,-150.0,6.87e-05,2]
[421013524,1776927039654,-150.0,6.87e-05,2]
[421013525,1776927039664,-150.0,6.879e-05,2]
[421013526,1776927039674,-150.0,6.89e-05,2]
[421013527,1776927039684,-150.0,6.899e-05,2]
[421013528,1776927039695,-150.0,6.9e-05,2]
[421013529,1776927039704,-150.0,6.9e-05,2]
[421013530,1776927039719,-151.0,6.906e-05,2]
[421013531,1776927039729,-150.0,6.911e-05,2]
[421013532,1776927039739,-150.0,6.916e-05,2]
[421013533,1776927039749,-150.0,6.922e-05,2]
[421013534,1776927039762,-150.0,6.928e-05,2]
[421013535,1776927039772,-10818.7645501,6.93e-05,2]
[421013537,1776927040199,-335.38,6.93e-05,2]
[421013538,1776927040254,-297.0302,6.93e-05,2]
[421013539,1776927040622,-5823.40515702,6.93e-05,2]
[421013540,1776927040632,-150.99,6.932e-05,2]
[421013541,1776927040642,-299.99,6.932e-05,2]
[421013542,1776927040652,-936.00987455,6.932e-05,2]
[421013543,1776927040681,-2161.24012545,6.932e-05,2]
[421013544,1776927040691,-11508.24653241,6.932e-05,2]
[421013731,1776927048400,-152.0,6.765e-05,7]
[421013732,1776927048449,-152.0,6.765e-05,7]
[421013733,1776927048459,-152.0,6.771e-05,7]
[421013734,1776927048468,-4700.58213335,6.932e-05,2]
[421013735,1776927048487,-2793.58099198,6.932e-05,2]
[421013736,1776927048535,-152.0,6.771e-05,7]
[421013737,1776927048550,-887.89653402,6.932e-05,2]
[421013738,1776927048562,-1777.293386,6.932e-05,2]
[421013740,1776927173173,-2030.00364733,6.69e-05,2]
[421013741,1776927173355,-10000.01,6.69e-05,2]
[421013742,1776927173384,-10000.01,6.69e-05,2]
[421013743,1776927180059,-164.62,6.687e-05,2]
[421013744,1776927228732,5000.01,6.65e-05,2]
[421013745,1776927228755,5000.01,6.65e-05,2]
[421013746,1776927228779,5000.01,6.65e-05,2]
[421013747,1776927228803,5000.01,6.65e-05,2]
[421013748,1776927228825,5000.01,6.65e-05,2]
[421013749,1776927240540,-4821.36708615,6.65e-05,2]
[421013750,1776927243223,-300.0,6.649e-05,2]
[421013751,1776927243256,-150.0,6.649e-05,2]
[421013752,1776927243289,-300.0,6.649e-05,2]
[421013753,1776927243384,-3500.01,6.65e-05,2]
[421013754,1776927243403,-5000.01,6.65e-05,2]
[421013755,1776927248930,-1678.60291385,6.65e-05,2]
[421013756,1776927305389,151.0,6.65e-05,3]
[421013757,1776927312139,477.0,6.65e-05,3]
[421013758,1776927367471,453.0,6.65e-05,3]
[421013759,1776927428920,430.0,6.65e-05,3]
[421013760,1776927489431,409.0,6.65e-05,3]
[421013761,1776927567761,388.0,6.65e-05,3]
[421013762,1776927611644,369.0,6.65e-05,3]
[421013763,1776927611776,151.0,6.65e-05,3]
[421013764,1776927629106,-538.82498789,6.683e-05,2]
[421013766,1776927665693,351.0,6.65e-05,3]
[421013776,1776927725045,193.0,6.65e-05,3]
[421013780,1776927782164,-1163.63229201,0.00044198,120]
[421013781,1776927782194,-20000.0,0.00044198,120]
[421013782,1776927782221,-17081.00331896,0.00044198,120]
[421013783,1776927782248,-2987.0,0.00044198,120]
[421013784,1776927782275,-5000.0,0.00044198,120]
[421013785,1776927783098,-500.0,0.00044198,120]
[421013786,1776927783144,-4000.0,0.00044198,120]
[421013787,1776927783171,-300.0,0.00044198,120]
[421013788,1776927783197,-214.75903125,0.00044198,120]
[421013789,1776927783223,-214.75903125,0.00044198,120]
[421013790,1776927783251,-214.75903125,0.00044198,120]
[421013791,1776927783278,-214.75903125,0.00044198,120]
[421013792,1776927783303,-214.75903124,0.00044198,120]
[421013793,1776927783329,-214.75903124,0.00044198,120]
[421013794,1776927783355,-214.75903124,0.00044198,120]
[421013795,1776927783380,-214.75903124,0.00044198,120]
[421013796,1776927783406,-214.75903124,0.00044198,120]
[421013797,1776927783431,-214.75903124,0.00044198,120]
[421013798,1776927783457,-214.75903124,0.00044198,120]
[421013799,1776927783483,-214.75903124,0.00044198,120]
[421013800,1776927783509,-214.75903124,0.00044198,120]
[421013801,1776927783535,-214.75903124,0.00044198,120]
[421013802,1776927783561,-214.75903124,0.00044198,120]
[421013803,1776927783587,-214.75903124,0.00044198,120]
[421013804,1776927783614,-214.75903124,0.00044198,120]
[421013805,1776927783639,-214.75903124,0.00044198,120]
[421013806,1776927783665,-214.75903124,0.00044198,120]
[421013807,1776927783691,-214.75903124,0.00044198,120]
[421013808,1776927783717,-4957.12326645,0.00044198,120]
[421013809,1776927783743,-14350.08367699,0.00044198,120]
[421013810,1776927783769,-335.12821864,0.00044198,120]
[421013811,1776927783795,-5224.0,0.00044198,120]
[421013812,1776927783822,-10000.0,0.00044198,120]
[421013813,1776927783849,-5500.0,0.00044198,120]
[421013814,1776927783876,-927.98413325,0.00044198,120]
[421013815,1776927783902,-1761.22542154,0.00044198,120]
[421013816,1776927783928,-6465.1,0.00044198,120]
[421013817,1776927783954,-69700.0,0.00044198,120]
[421013818,1776927783981,-4239.40406767,0.00044198,120]
[421013819,1776927784009,-3773.43749412,0.00044198,120]
[421013820,1776927784037,-1280.0,0.00044198,120]
[421013821,1776927784064,-1200.0,0.00044198,120]
[421013822,1776927784092,-1000.0,0.00044198,120]
[421013823,1776927784119,-1000.0,0.00044198,120]
[421013824,1776927784144,-1000.0,0.00044198,120]
[421013825,1776927784171,-1000.0,0.00044198,120]
[421013826,1776927784198,-202.88207785,0.00044198,120]
[421013827,1776927784226,-11923.0,0.00044198,120]
[421013828,1776927784254,-15804.8037585,0.00044198,120]
[421013829,1776927784280,-193.63190296,0.00044198,120]
[421013830,1776927784306,-562.09410798,0.00044198,120]
[421013831,1776927784332,-226.9,0.00044198,120]
[421013832,1776927784357,-358.6,0.00044198,120]
[421013833,1776927784384,-175.57574213,0.00044198,120]
[421013834,1776927784410,-3885.0,0.00044198,120]
[421013835,1776927784436,-2283.63465423,0.00044198,120]
[421013836,1776927784463,-10000.0,0.00044198,120]
[421013837,1776927784492,-1180.53808655,0.00044198,120]
[421013838,1776927784520,-100200.0,0.00044198,120]
[421013839,1776927784547,-1000.0,0.00044198,120]
[421013840,1776927784573,-1000.0,0.00044198,120]
[421013841,1776927784599,-1000.0,0.00044198,120]
[421013842,1776927784625,-1000.0,0.00044198,120]
[421013843,1776927784652,-1000.0,0.00044198,120]
[421013844,1776927784677,-1000.0,0.00044198,120]
[421013845,1776927784703,-1000.0,0.00044198,120]
[421013846,1776927784728,-1000.0,0.00044198,120]
[421013847,1776927784755,-1000.0,0.00044198,120]
[421013848,1776927784780,-1000.0,0.00044198,120]
[421013849,1776927784807,-1000.0,0.00044198,120]
[421013850,1776927784833,-1000.0,0.00044198,120]
[421013851,1776927784859,-1000.0,0.00044198,120]
[421013852,1776927784886,-1000.0,0.00044198,120]
[421013853,1776927784912,-1000.0,0.00044198,120]
[421013854,1776927784939,-1213.62,0.00044198,120]
[421013855,1776927784964,-1000.0,0.00044198,120]
[421013856,1776927784990,-1000.0,0.00044198,120]
[421013857,1776927785017,-1000.0,0.00044198,120]
[421013858,1776927785045,-1000.0,0.00044198,120]
[421013859,1776927785072,-1000.0,0.00044198,120]
[421013860,1776927785099,-1000.0,0.00044198,120]
[421013861,1776927785125,-1000.0,0.00044198,120]
[421013862,1776927785154,-1000.0,0.00044198,120]
[421013863,1776927785180,-1387.03,0.00044198,120]
[421013864,1776927785206,-1540.57089434,0.00044198,120]
[421013865,1776927785234,-17931.0,0.00044198,120]
[421013866,1776927785265,-16687.0,0.00044198,120]
[421013867,1776927785292,-151.0,0.00044198,120]
[421013868,1776927785319,-1000.0,0.00044198,120]
[421013869,1776927785347,-1000.0,0.00044198,120]
[421013870,1776927785373,-1000.0,0.00044198,120]
[421013871,1776927785400,-1000.0,0.00044198,120]
[421013872,1776927785427,-1000.0,0.00044198,120]
[421013873,1776927785453,-1000.0,0.00044198,120]
[421013874,1776927785479,-1000.0,0.00044198,120]
[421013875,1776927785505,-1000.0,0.00044198,120]
[421013876,1776927785534,-1000.0,0.00044198,120]
[421013877,1776927785561,-1000.0,0.00044198,120]
[421013878,1776927785589,-1000.0,0.00044198,120]
[421013879,1776927785616,-1000.0,0.00044198,120]
[421013880,1776927785644,-1000.0,0.00044198,120]
[421013881,1776927786024,-1000.0,0.00044198,120]
[421013882,1776927786050,-1000.0,0.00044198,120]
[421013883,1776927786077,-1000.0,0.00044198,120]
[421013884,1776927786103,-1000.0,0.00044198,120]
[421013885,1776927786131,-1000.0,0.00044198,120]
[421013886,1776927786157,-1000.0,0.00044198,120]
[421013887,1776927786185,-1000.0,0.00044198,120]
[421013888,1776927786213,-48376.57,0.00044198,120]
[421013889,1776927786240,-257156.98520691,0.00044198,120]
[421013890,1776927786267,-950201.7434111,0.00044198,120]
[421013891,1776927786294,-316.27,0.00044198,120]
[421013892,1776927786323,-50000.0,0.00044198,120]
[421013893,1776927786352,-50000.0,0.00044198,120]
[421013894,1776927786381,-50000.0,0.00044198,120]
[421013895,1776927786409,-50000.0,0.00044198,120]
[421013896,1776927786437,-50000.0,0.00044198,120]
[421013897,1776927786464,-1900.0,0.00044198,120]
[421013898,1776927786490,-2614.0,0.00044198,120]
[421013899,1776927786519,-2500.0,0.00044198,120]
[421013900,1776927786547,-2500.0,0.00044198,120]
[421013901,1776927786574,-2500.0,0.00044198,120]
[421013902,1776927786603,-10117.0,0.00044198,120]
[421013903,1776927786632,-4100.0,0.00044198,120]
[421013904,1776927786657,-109913.87704096,0.00044198,120]
[421013905,1776927786682,-10000.0,0.00044198,120]
[421013906,1776927786709,-7376.21844831,0.00044198,120]
[421013907,1776927786736,-3839.89641699,0.00044198,120]
[421013908,1776927786764,-3360.22319244,0.00044198,120]
[421013909,1776927786789,-40224.34998472,0.00044198,120]
[421013910,1776927786814,-565.66020683,0.00044198,120]
[421013911,1776927786840,-90675.37138311,0.00044198,120]
[421013912,1776927786867,-5156.0,0.00044198,120]
[421013913,1776927786895,-7250.0,0.00044198,120]
[421013914,1776927786922,-97580.66704796,0.00044198,120]
[421013915,1776927786950,-1000.0,0.00044198,120]
[421013916,1776927786976,-715000.0,0.00044198,120]
[421013917,1776927787002,-10000.0,0.00044198,120]
[421013918,1776927787028,-15136.48065055,0.00044198,120]
[421013919,1776927787055,-412917.41,0.00044198,120]
[421013920,1776927787081,-30000.0,0.00044198,120]
[421013921,1776927787108,-29085.27,0.00044198,120]
[421013922,1776927787136,-1000000.0,0.00044198,120]
[421013923,1776927787167,-460688.82327111,0.00044198,120]
[421013924,1776927796588,-539311.17672889,0.00044198,120]
[421013925,1776927796615,-443756.81,0.00044198,120]
[421013926,1776927796641,-10000.19514805,0.00044198,120]
[421013927,1776927796667,-1576.0,0.00044198,120]
[421013928,1776927796694,-194.63,0.00044198,120]
[421013929,1776927796720,-5000.0,0.00044198,120]
[421013930,1776927796746,-5000.0,0.00044198,120]
[421013931,1776927796774,-5000.0,0.00044198,120]
[421013932,1776927796801,-5000.0,0.00044198,120]
[421013933,1776927796829,-5000.0,0.00044198,120]
[421013934,1776927796855,-5000.0,0.00044198,120]
[421013935,1776927796881,-5000.0,0.00044198,120]
[421013936,1776927796907,-5000.0,0.00044198,120]
[421013937,1776927796933,-5000.0,0.00044198,120]
[421013938,1776927796962,-5000.0,0.00044198,120]
[421013939,1776927796988,-5000.0,0.00044198,120]
[421013940,1776927797016,-5000.0,0.00044198,120]
[421013941,1776927797044,-5000.0,0.00044198,120]
[421013942,1776927797070,-2002.0,0.00044198,120]
[421013943,1776927797096,-500.0,0.00044198,120]
[421013944,1776927797123,-487.0,0.00044198,120]
[421013945,1776927797149,-487.0,0.00044198,120]
[421013946,1776927797176,-487.0,0.00044198,120]
[421013947,1776927797203,-487.0,0.00044198,120]
[421013948,1776927797230,-487.0,0.00044198,120]
[421013949,1776927797257,-487.0,0.00044198,120]
[421013950,1776927797284,-487.0,0.00044198,120]
[421013951,1776927797310,-487.0,0.00044198,120]
[421013952,1776927797336,-487.0,0.00044198,120]
[421013953,1776927797363,-487.0,0.00044198,120]
[421013954,1776927797390,-487.0,0.00044198,120]
[421013955,1776927797418,-487.0,0.00044198,120]
[421013956,1776927797445,-487.0,0.00044198,120]
[421013957,1776927797472,-487.0,0.00044198,120]
[421013958,1776927797498,-487.0,0.00044198,120]
[421013959,1776927797524,-487.0,0.00044198,120]
[421013960,1776927797552,-487.0,0.00044198,120]
[421013961,1776927797580,-487.0,0.00044198,120]
[421013962,1776927797607,-487.0,0.00044198,120]
[421013963,1776927797638,-487.0,0.00044198,120]
[421013964,1776927797665,-487.0,0.00044198,120]
[421013965,1776927797692,-487.0,0.00044198,120]
[421013966,1776927797718,-487.0,0.00044198,120]
[421013967,1776927797747,-487.0,0.00044198,120]
[421013968,1776927797775,-487.0,0.00044198,120]
[421013969,1776927797803,-487.0,0.00044198,120]
[421013970,1776927797829,-487.0,0.00044198,120]
[421013971,1776927797857,-420.01,0.00044198,120]
[421013972,1776927797884,-230.05,0.00044198,120]
[421013973,1776927798432,-230.05,0.00044198,120]
[421013974,1776927798459,-230.05,0.00044198,120]
[421013975,1776927798485,-230.05,0.00044198,120]
[421013976,1776927798511,-230.05,0.00044198,120]
[421013977,1776927798537,-230.05,0.00044198,120]
[421013978,1776927798564,-230.05,0.00044198,120]
[421013979,1776927798591,-230.05,0.00044198,120]
[421013980,1776927798617,-230.05,0.00044198,120]
[421013981,1776927798645,-230.05,0.00044198,120]
[421013982,1776927798671,-230.05,0.00044198,120]
[421013983,1776927798698,-230.05,0.00044198,120]
[421013984,1776927798724,-230.05,0.00044198,120]
[421013985,1776927798750,-230.05,0.00044198,120]
[421013986,1776927798777,-230.05,0.00044198,120]
[421013987,1776927798803,-230.05,0.00044198,120]
[421013988,1776927798830,-230.05,0.00044198,120]
[421013989,1776927798857,-230.05,0.00044198,120]
[421013990,1776927798883,-230.05,0.00044198,120]
[421013991,1776927798909,-230.05,0.00044198,120]
[421013992,1776927798937,-230.13,0.00044198,120]
[421013993,1776927798965,-9150.0,0.00044198,120]
[421013994,1776927798991,-396.17072808,0.00044198,120]
[421013995,1776927799018,-381.52963725,0.00044198,120]
[421013996,1776927799048,-487.0,0.00044198,120]
[421013997,1776927799076,-487.0,0.00044198,120]
[421013998,1776927799103,-487.0,0.00044198,120]
[421013999,1776927799130,-487.0,0.00044198,120]
[421014000,1776927799158,-487.0,0.00044198,120]
[421014001,1776927799185,-487.0,0.00044198,120]
[421014002,1776927799213,-487.0,0.00044198,120]
[421014003,1776927799240,-2000.0,0.00044198,120]
[421014004,1776927799268,-487.0,0.00044198,120]
[421014005,1776927799295,-487.0,0.00044198,120]
[421014006,1776927799321,-2000.0,0.00044198,120]
[421014007,1776927799349,-487.0,0.00044198,120]
[421014008,1776927799376,-487.0,0.00044198,120]
[421014009,1776927799403,-487.0,0.00044198,120]
[421014010,1776927799429,-2000.0,0.00044198,120]
[421014011,1776927799456,-487.0,0.00044198,120]
[421014012,1776927799483,-200.0,0.00044198,120]
[421014013,1776927799510,-200.0,0.00044198,120]
[421014014,1776927799536,-200.0,0.00044198,120]
[421014015,1776927799565,-487.0,0.00044198,120]